fUSD/lending_fUSD_20250515
["ID","MTS","AMOUNT","RATE_DAILY","PERIOD"]
[361128146,1747294240500,-400.0,0.00011118,2]
[361128147,1747294240509,-400.0,0.00011118,2]
[361128148,1747294240519,-400.0,0.00011118,2]
[361128149,1747294240528,-400.0,0.00011118,2]
[361128150,1747294240537,-1123.27,0.00011118,2]
[361128151,1747294240547,-1058.79,0.00011118,2]
[361128152,1747294240556,-1890.44,0.00011118,2]
[361128153,1747294240566,-400.0,0.00011118,2]
[361128154,1747294240576,-400.0,0.00011118,2]
[361128155,1747294240586,-760.7,0.00011118,2]
[361128156,1747294240595,-812.12,0.00011118,2]
[361128157,1747294240604,-400.0,0.00011118,2]
[361128158,1747294240614,-1591.86,0.00011118,2]
[361128159,1747294240623,-400.0,0.00011118,2]
[361128160,1747294240632,-675.18,0.00011118,2]
[361128161,1747294240642,-670.05,0.00011118,2]
[361128162,1747294240651,-400.0,0.00011118,2]
[361128163,1747294240662,-1157.03,0.00011118,2]
[361128164,1747294240671,-813.4,0.00011118,2]
[361128165,1747294240682,-400.0,0.00011118,2]
[361128166,1747294240692,-400.0,0.00011118,2]
[361128167,1747294240702,-1227.41,0.00011118,2]
[361128168,1747294240711,-1312.43,0.00011118,2]
[361128169,1747294240720,-400.0,0.00011118,2]
[361128170,1747294240730,-791.78,0.00011118,2]
[361128171,1747294240740,-403.86277795,0.00011118,2]
[361128172,1747294240749,-1206.65,0.00011118,2]
[361128173,1747294240759,-853.67,0.00011118,2]
[361128174,1747294240768,-400.0,0.00011118,2]
[361128175,1747294240777,-400.0,0.00011118,2]
[361128176,1747294240787,-400.0,0.00011118,2]
[361128177,1747294240796,-404.34876662,0.00011118,2]
[361128178,1747294240806,-1262.98,0.00011118,2]
[361128179,1747294240816,-400.0,0.00011118,2]
[361128180,1747294240826,-400.0,0.00011118,2]
[361128181,1747294240835,-400.0,0.00011118,2]
[361128182,1747294240845,-4241.38,0.00011118,2]
[361128183,1747294240855,-838.24,0.00011118,2]
[361128184,1747294240865,-1086.91,0.00011118,2]
[361128185,1747294240875,-1661.73,0.00011118,2]
[361128186,1747294240885,-411.06260939,0.00011118,2]
[361128187,1747294240895,-400.0,0.00011118,2]
[361128188,1747294240904,-681.3,0.00011118,2]
[361128189,1747294240915,-5898.28,0.00011118,2]
[361128190,1747294240925,-400.0,0.00011118,2]
[361128191,1747294240935,-151.0,0.00011118,2]
[361128192,1747294240945,-400.0,0.00011118,2]
[361128193,1747294240955,-413.95231746,0.00011118,2]
[361128194,1747294240966,-486.32,0.00011118,2]
[361128196,1747294240975,-420.02,0.00011118,2]
[361128208,1747294241240,-151.0,0.00011118,2]
[361128209,1747294241255,-2082.5,0.00011118,2]
[361128210,1747294241264,-1003.98,0.00011118,2]
[361128211,1747294241274,-581.28,0.00011118,2]
[361128212,1747294241283,-400.0,0.00011118,2]
[361128213,1747294241293,-3731.67,0.00011118,2]
[361128214,1747294241302,-400.0,0.00011118,2]
[361128215,1747294241312,-734.88,0.00011118,2]
[361128216,1747294241321,-151.0,0.00011118,2]
[361128217,1747294241330,-424.26,0.00011118,2]
[361128218,1747294241339,-1138.59,0.00011118,2]
[361128219,1747294241349,-151.0,0.00011118,2]
[361128220,1747294241359,-400.0,0.00011118,2]
[361128221,1747294241368,-151.0,0.00011118,2]
[361128222,1747294241377,-3103.08,0.00011118,2]
[361128223,1747294241386,-435.51,0.00011118,2]
[361128224,1747294241396,-400.0,0.00011118,2]
[361128225,1747294241406,-400.0,0.00011118,2]
[361128226,1747294241417,-483.53225182,0.00011118,2]
[361128227,1747294241427,-400.0,0.00011118,2]
[361128228,1747294241436,-151.0,0.00011118,2]
[361128229,1747294241445,-919.2,0.00011118,2]
[361128230,1747294241455,-491.05,0.00011118,2]
[361128231,1747294241464,-1640.58,0.00011118,2]
[361128232,1747294241474,-500.0,0.00011118,2]
[361128233,1747294241483,-400.0,0.00011118,2]
[361128234,1747294241492,-425.65,0.00011118,2]
[361128235,1747294241502,-400.0,0.00011118,2]
[361128236,1747294241511,-2654.78,0.00011118,2]
[361128237,1747294241522,-1000.0,0.00011118,2]
[361128238,1747294241531,-400.0,0.00011118,2]
[361128239,1747294241541,-400.0,0.00011118,2]
[361128240,1747294241550,-151.0,0.00011118,2]
[361128241,1747294241559,-151.0,0.00011118,2]
[361128242,1747294241569,-151.0,0.00011118,2]
[361128243,1747294241578,-5501.08,0.00011118,2]
[361128244,1747294241587,-505.7,0.00011118,2]
[361128245,1747294241596,-400.0,0.00011118,2]
[361128246,1747294241606,-15512.37,0.00011118,2]
[361128247,1747294241616,-539.95,0.00011118,2]
[361128248,1747294241625,-400.0,0.00011118,2]
[361128249,1747294241634,-400.0,0.00011118,2]
[361128250,1747294241644,-497.574153,0.00011118,2]
[361128251,1747294241654,-797.07,0.00011118,2]
[361128252,1747294241666,-497.574153,0.00011118,2]
[361128253,1747294241676,-413.33385673,0.00011118,2]
[361128254,1747294241686,-2272.1,0.00011118,2]
[361128255,1747294241696,-400.0,0.00011118,2]
[361128256,1747294241705,-5105.33,0.00011118,2]
[361128257,1747294241714,-935.9,0.00011118,2]
[361128258,1747294241723,-151.0,0.00011118,2]
[361128259,1747294241733,-151.0,0.00011118,2]
[361128260,1747294241742,-492.1,0.00011118,2]
[361128261,1747294241751,-151.981862,0.00011118,2]
[361128262,1747294241761,-455.32,0.00011118,2]
[361128263,1747294241770,-151.0,0.00011118,2]
[361128264,1747294241780,-8414.17,0.00011118,2]
[361128265,1747294241790,-400.0,0.00011118,2]
[361128266,1747294241799,-587.22,0.00011118,2]
[361128267,1747294241809,-152.273754,0.00011118,2]
[361128268,1747294241820,-828.49,0.00011118,2]
[361128269,1747294241829,-658.28,0.00011118,2]
[361128270,1747294241839,-44760.1364,0.00011118,2]
[361128271,1747294241849,-2106.6314,0.00011119,2]
[361128272,1747294241858,-151.0,0.00011119,2]
[361128273,1747294241868,-685.19585739,0.00011121,2]
[361128274,1747294241878,-500.0,0.00011137,2]
[361128275,1747294241887,-500.0,0.00011137,2]
[361128276,1747294241896,-200.0,0.00011137,2]
[361128277,1747294241905,-277.72583467,0.00011204,2]
[361128278,1747294241916,-300.0,0.00011213,2]
[361128279,1747294241925,-506.29090192,0.00011213,2]
[361128280,1747294241935,-151.0,0.00011213,2]
[361128281,1747294241944,-500.0,0.00011213,2]
[361128282,1747294241954,-500.0,0.00011213,2]
[361128283,1747294241963,-500.0,0.00011213,2]
[361128284,1747294241973,-242.545399,0.00011213,2]
[361128285,1747294241983,-500.0,0.00011213,2]
[361128286,1747294241993,-151.0,0.00011213,2]
[361128287,1747294242002,-300.0,0.00011213,2]
[361128288,1747294242015,-300.0,0.00011213,2]
[361128289,1747294242025,-201.08774952,0.00011213,2]
[361128290,1747294242034,-371325.74002575,0.00011213,2]
[361128291,1747294242044,-397.13499216,0.00011214,2]
[361128292,1747294242055,-400.0,0.00011214,2]
[361128293,1747294242065,-400.0,0.00011214,2]
[361128294,1747294242075,-400.0,0.00011214,2]
[361128295,1747294242084,-400.0,0.00011214,2]
[361128296,1747294242096,-400.0,0.00011214,2]
[361128297,1747294242106,-400.0,0.00011214,2]
[361128298,1747294242115,-400.0,0.00011214,2]
[361128299,1747294242124,-400.0,0.00011214,2]
[361128300,1747294242133,-400.0,0.00011214,2]
[361128301,1747294242142,-400.0,0.00011214,2]
[361128302,1747294242152,-400.0,0.00011214,2]
[361128303,1747294242166,-400.0,0.00011214,2]
[361128304,1747294242175,-400.0,0.00011214,2]
[361128305,1747294242184,-400.0,0.00011214,2]
[361128306,1747294242193,-400.0,0.00011214,2]
[361128307,1747294242203,-400.0,0.00011214,2]
[361128308,1747294242215,-400.0,0.00011214,2]
[361128309,1747294242224,-400.0,0.00011214,2]
[361128310,1747294242233,-400.0,0.00011214,2]
[361128311,1747294242243,-400.0,0.00011214,2]
[361128312,1747294242253,-400.0,0.00011214,2]
[361128313,1747294242262,-400.0,0.00011214,2]
[361128314,1747294242271,-400.0,0.00011214,2]
[361128315,1747294242280,-400.0,0.00011214,2]
[361128316,1747294242289,-400.0,0.00011214,2]
[361128317,1747294242298,-49020.0055,0.00011214,2]
[361128318,1747294242307,-400.0,0.00011214,2]
[361128319,1747294242317,-208.59767328,0.00011214,2]
[361128320,1747294242326,-400.0,0.00011214,2]
[361128321,1747294242335,-400.0,0.00011214,2]
[361128322,1747294242344,-324.36862053,0.00011214,2]
[361128323,1747294242353,-400.0,0.00011214,2]
[361128324,1747294242363,-213.65419065,0.00011214,2]
[361128325,1747294242372,-400.0,0.00011214,2]
[361128326,1747294242381,-400.0,0.00011214,2]
[361128327,1747294242390,-400.0,0.00011214,2]
[361128328,1747294242399,-400.0,0.00011214,2]
[361128329,1747294242408,-400.0,0.00011214,2]
[361128330,1747294242423,-250.0,0.00011214,2]
[361128331,1747294242432,-421.71319011,0.00011214,2]
[361128332,1747294242441,-400.0,0.00011214,2]
[361128333,1747294242450,-400.0,0.00011214,2]
[361128334,1747294242460,-400.0,0.00011214,2]
[361128335,1747294242469,-400.0,0.00011214,2]
[361128336,1747294242478,-400.0,0.00011214,2]
[361128337,1747294242488,-400.0,0.00011214,2]
[361128338,1747294242497,-400.0,0.00011214,2]
[361128339,1747294242507,-400.0,0.00011214,2]
[361128340,1747294242516,-400.0,0.00011214,2]
[361128341,1747294242525,-400.73596391,0.00011214,2]
[361128342,1747294242534,-400.0,0.00011214,2]
[361128343,1747294242543,-400.0,0.00011214,2]
[361128344,1747294242553,-400.0,0.00011214,2]
[361128345,1747294242562,-400.0,0.00011214,2]
[361128346,1747294242571,-400.0,0.00011214,2]
[361128347,1747294242580,-402.45855726,0.00011214,2]
[361128348,1747294242590,-412.16597245,0.00011214,2]
[361128349,1747294242599,-400.0,0.00011214,2]
[361128350,1747294242608,-400.0,0.00011214,2]
[361128351,1747294242618,-400.0,0.00011214,2]
[361128352,1747294242627,-400.0,0.00011214,2]
[361128353,1747294242636,-400.0,0.00011214,2]
[361128354,1747294242645,-400.0,0.00011214,2]
[361128355,1747294242654,-400.0,0.00011214,2]
[361128356,1747294242666,-400.0,0.00011214,2]
[361128357,1747294242675,-440.51974825,0.00011214,2]
[361128358,1747294242684,-400.0,0.00011214,2]
[361128359,1747294242693,-400.0,0.00011214,2]
[361128360,1747294242703,-400.0,0.00011214,2]
[361128361,1747294242712,-400.0,0.00011214,2]
[361128362,1747294242721,-400.0,0.00011214,2]
[361128363,1747294242731,-400.0,0.00011214,2]
[361128364,1747294242741,-400.0,0.00011214,2]
[361128365,1747294242751,-411.78294496,0.00011214,2]
[361128366,1747294242760,-403.79130136,0.00011214,2]
[361128367,1747294242769,-400.0,0.00011214,2]
[361128368,1747294242779,-400.0,0.00011214,2]
[361128369,1747294242789,-400.0,0.00011214,2]
[361128370,1747294242798,-400.0,0.00011214,2]
[361128371,1747294242807,-170.44520529,0.00011214,2]
[361128372,1747294242816,-400.0,0.00011214,2]
[361128373,1747294242826,-400.0,0.00011214,2]
[361128374,1747294242835,-400.0,0.00011214,2]
[361128375,1747294242845,-60061.8274999,0.00011214,2]
[361128376,1747294242854,-400.0,0.00011214,2]
[361128377,1747294242864,-412.39505184,0.00011214,2]
[361128378,1747294242873,-400.0,0.00011214,2]
[361128379,1747294242882,-400.0,0.00011214,2]
[361128380,1747294242891,-400.0,0.00011214,2]
[361128381,1747294242901,-400.0,0.00011214,2]
[361128382,1747294242912,-401.31888694,0.00011214,2]
[361128383,1747294242923,-400.0,0.00011214,2]
[361128384,1747294242933,-400.0,0.00011214,2]
[361128385,1747294242942,-400.0,0.00011214,2]
[361128386,1747294242951,-400.0,0.00011214,2]
[361128387,1747294242961,-419.75909698,0.00011214,2]
[361128388,1747294242970,-400.0,0.00011214,2]
[361128389,1747294242979,-379.59474397,0.00011214,2]
[361128390,1747294242988,-404.89956781,0.00011214,2]
[361128391,1747294242997,-400.0,0.00011214,2]
[361128392,1747294243007,-400.0,0.00011214,2]
[361128393,1747294243019,-400.0,0.00011214,2]
[361128394,1747294243028,-31974.3068395,0.00011214,2]
[361128395,1747294243037,-400.0,0.00011214,2]
[361128396,1747294243046,-166.37252391,0.00011214,2]
[361128397,1747294243056,-400.0,0.00011214,2]
[361128398,1747294243065,-400.0,0.00011214,2]
[361128399,1747294243075,-400.0,0.00011214,2]
[361128400,1747294243085,-403.97400219,0.00011214,2]
[361128401,1747294243094,-400.0,0.00011214,2]
[361128402,1747294243103,-400.0,0.00011214,2]
[361128403,1747294243112,-151.0,0.00011214,2]
[361128404,1747294243123,-400.0,0.00011214,2]
[361128405,1747294243132,-151.0,0.00011214,2]
[361128406,1747294243141,-151.0,0.00011214,2]
[361128407,1747294243151,-400.0,0.00011214,2]
[361128408,1747294243161,-400.0,0.00011214,2]
[361128409,1747294243175,-505.09086267,0.00011214,2]
[361128410,1747294243184,-400.0,0.00011214,2]
[361128412,1747294243194,-406.29100475,0.00011214,2]
[361128415,1747294243204,-400.0,0.00011214,2]
[361128417,1747294243213,-400.0,0.00011214,2]
[361128423,1747294243223,-400.0,0.00011214,2]
[361128426,1747294243233,-400.0,0.00011214,2]
[361128429,1747294243242,-400.0,0.00011214,2]
[361128432,1747294243251,-404.07301659,0.00011214,2]
[361128435,1747294243261,-400.0,0.00011214,2]
[361128437,1747294243271,-400.0,0.00011214,2]
[361128439,1747294243281,-400.0,0.00011214,2]
[361128441,1747294243290,-400.0,0.00011214,2]
[361128443,1747294243299,-400.38,0.00011214,2]
[361128444,1747294243310,-400.0,0.00011214,2]
[361128446,1747294243320,-403.1480191,0.00011214,2]
[361128448,1747294243330,-151.0,0.00011214,2]
[361128450,1747294243340,-151.0,0.00011214,2]
[361128451,1747294243349,-226.56711135,0.00011214,2]
[361128452,1747294243358,-151.0,0.00011214,2]
[361128453,1747294243368,-400.0,0.00011214,2]
[361128455,1747294243377,-400.0,0.00011214,2]
[361128458,1747294243387,-409.9998669,0.00011214,2]
[361128460,1747294243397,-400.0,0.00011214,2]
[361128462,1747294243407,-500.0,0.00011214,2]
[361128464,1747294243423,-400.0,0.00011214,2]
[361128466,1747294243432,-406.00348421,0.00011214,2]
[361128468,1747294243442,-400.0,0.00011214,2]
[361128470,1747294243452,-400.0,0.00011214,2]
[361128472,1747294243462,-400.0,0.00011214,2]
[361128473,1747294243472,-402.78846093,0.00011214,2]
[361128475,1747294243481,-400.0,0.00011214,2]
[361128477,1747294243490,-407.40121231,0.00011214,2]
[361128479,1747294243499,-400.0,0.00011214,2]
[361128481,1747294243510,-400.0,0.00011214,2]
[361128482,1747294243520,-404.90798653,0.00011214,2]
[361128483,1747294243530,-400.0,0.00011214,2]
[361128484,1747294243539,-404.18546701,0.00011214,2]
[361128485,1747294243557,-151.0,0.00011214,2]
[361128486,1747294243567,-406.1705986,0.00011214,2]
[361128487,1747294243576,-400.0,0.00011214,2]
[361128488,1747294243586,-400.0,0.00011214,2]
[361128489,1747294243596,-442.14974566,0.00011214,2]
[361128490,1747294243606,-400.0,0.00011214,2]
[361128491,1747294243616,-400.0,0.00011214,2]
[361128492,1747294243625,-427.85543071,0.00011214,2]
[361128493,1747294243636,-400.0,0.00011214,2]
[361128494,1747294243646,-403.13935759,0.00011214,2]
[361128495,1747294243656,-400.0,0.00011214,2]
[361128496,1747294243670,-400.0,0.00011214,2]
[361128497,1747294243680,-402.87000278,0.00011214,2]
[361128498,1747294243690,-407.41634759,0.00011214,2]
[361128499,1747294243701,-400.0,0.00011214,2]
[361128500,1747294243711,-400.0,0.00011214,2]
[361128501,1747294243721,-400.0,0.00011214,2]
[361128502,1747294243731,-400.0,0.00011214,2]
[361128503,1747294243741,-400.0,0.00011214,2]
[361128504,1747294243750,-400.0,0.00011214,2]
[361128505,1747294243760,-388.15722449,0.00011214,2]
[361128506,1747294243770,-400.0,0.00011214,2]
[361128507,1747294243779,-400.0,0.00011214,2]
[361128508,1747294243789,-1000.0,0.00011214,2]
[361128509,1747294243799,-503.46,0.00011214,2]
[361128510,1747294243809,-406.61348707,0.00011214,2]
[361128511,1747294243819,-400.0,0.00011214,2]
[361128512,1747294243828,-400.0,0.00011214,2]
[361128513,1747294243838,-412.64711547,0.00011214,2]
[361128514,1747294243849,-402.65554391,0.00011214,2]
[361128515,1747294243859,-400.0,0.00011214,2]
[361128516,1747294243868,-151.0,0.00011214,2]
[361128517,1747294243878,-161.330326,0.00011214,2]
[361128518,1747294243887,-407.47356968,0.00011214,2]
[361128520,1747294243897,-60061.8274999,0.00011214,2]
[361128522,1747294243906,-400.0,0.00011214,2]
[361128524,1747294243918,-401.22624222,0.00011214,2]
[361128526,1747294243927,-400.0,0.00011214,2]
[361128528,1747294243937,-400.0,0.00011214,2]
[361128530,1747294243946,-404.35249561,0.00011214,2]
[361128532,1747294243955,-400.0,0.00011214,2]
[361128535,1747294243964,-400.0,0.00011214,2]
[361128537,1747294243974,-400.0,0.00011214,2]
[361128539,1747294243983,-406.56129845,0.00011214,2]
[361128541,1747294243993,-400.0,0.00011214,2]
[361128543,1747294244002,-400.0,0.00011214,2]
[361128544,1747294244014,-400.0,0.00011214,2]
[361128546,1747294244024,-151.0,0.00011214,2]
[361128548,1747294244033,-403.13807347,0.00011214,2]
[361128550,1747294244042,-151.0,0.00011214,2]
[361128552,1747294244052,-155.886685,0.00011214,2]
[361128554,1747294244061,-400.0,0.00011214,2]
[361128556,1747294244070,-400.0,0.00011214,2]
[361128558,1747294244083,-405.2070032,0.00011214,2]
[361128560,1747294244092,-400.0,0.00011214,2]
[361128561,1747294244101,-400.0,0.00011214,2]
[361128562,1747294244113,-402.83120448,0.00011214,2]
[361128563,1747294244123,-400.0,0.00011214,2]
[361128564,1747294244132,-403.26,0.00011214,2]
[361128565,1747294244141,-409.34925783,0.00011214,2]
[361128566,1747294244150,-403.51082808,0.00011214,2]
[361128567,1747294244159,-402.93000266,0.00011214,2]
[361128568,1747294244171,-400.0,0.00011214,2]
[361128569,1747294244181,-400.0,0.00011214,2]
[361128570,1747294244190,-400.0,0.00011214,2]
[361128571,1747294244199,-400.0,0.00011214,2]
[361128572,1747294244210,-400.0,0.00011214,2]
[361128573,1747294244219,-406.95724154,0.00011214,2]
[361128574,1747294244229,-400.0,0.00011214,2]
[361128575,1747294244238,-400.0,0.00011214,2]
[361128576,1747294244248,-400.0,0.00011214,2]
[361128577,1747294244258,-151.0,0.00011214,2]
[361128578,1747294244267,-151.0,0.00011214,2]
[361128579,1747294244276,-400.0,0.00011214,2]
[361128580,1747294244286,-400.0,0.00011214,2]
[361128581,1747294244295,-400.0,0.00011214,2]
[361128582,1747294244304,-300.32473305,0.00011214,2]
[361128583,1747294244313,-151.0,0.00011214,2]
[361128584,1747294244323,-151.0,0.00011214,2]
[361128585,1747294244332,-151.0,0.00011214,2]
[361128586,1747294244342,-179.296411,0.00011214,2]
[361128587,1747294244352,-418.70849578,0.00011214,2]
[361128588,1747294244361,-400.0,0.00011214,2]
[361128589,1747294244370,-151.0,0.00011214,2]
[361128590,1747294244379,-400.0,0.00011214,2]
[361128591,1747294244389,-151.0,0.00011214,2]
[361128592,1747294244398,-151.0,0.00011214,2]
[361128593,1747294244408,-400.0,0.00011214,2]
[361128594,1747294244422,-151.0,0.00011214,2]
[361128595,1747294244430,-151.0,0.00011214,2]
[361128596,1747294244440,-540.148238,0.00011214,2]
[361128597,1747294244450,-400.0,0.00011214,2]
[361128598,1747294244460,-151.0,0.00011214,2]
[361128599,1747294244470,-540.148238,0.00011214,2]
[361128600,1747294244480,-540.148238,0.00011214,2]
[361128601,1747294244489,-540.148238,0.00011214,2]
[361128602,1747294244500,-540.148238,0.00011214,2]
[361128603,1747294244510,-540.148238,0.00011214,2]
[361128604,1747294244520,-400.0,0.00011214,2]
[361128605,1747294244530,-400.0,0.00011214,2]
[361128606,1747294244540,-400.0,0.00011214,2]
[361128607,1747294244550,-400.0,0.00011214,2]
[361128608,1747294244560,-400.0,0.00011214,2]
[361128609,1747294244570,-400.0,0.00011214,2]
[361128610,1747294244580,-468.03782948,0.00011214,2]
[361128611,1747294244590,-405.76719088,0.00011214,2]
[361128612,1747294244600,-400.0,0.00011214,2]
[361128613,1747294244610,-400.0,0.00011214,2]
[361128614,1747294244619,-151.364239,0.00011214,2]
[361128615,1747294244629,-400.0,0.00011214,2]
[361128616,1747294244638,-400.0,0.00011214,2]
[361128617,1747294244648,-400.0,0.00011214,2]
[361128618,1747294244658,-400.0,0.00011214,2]
[361128619,1747294244673,-411.44799533,0.00011214,2]
[361128620,1747294244683,-400.0,0.00011214,2]
[361128621,1747294244693,-400.0,0.00011214,2]
[361128622,1747294244704,-400.0,0.00011214,2]
[361128623,1747294244714,-400.0,0.00011214,2]
[361128624,1747294244723,-400.0,0.00011214,2]
[361128625,1747294244734,-400.0,0.00011214,2]
[361128626,1747294244743,-413.09665686,0.00011214,2]
[361128627,1747294244753,-281.769436,0.00011214,2]
[361128628,1747294244762,-151.0,0.00011214,2]
[361128629,1747294244772,-151.0,0.00011214,2]
[361128630,1747294244781,-400.0,0.00011214,2]
[361128631,1747294244791,-151.0,0.00011214,2]
[361128632,1747294244801,-151.0,0.00011214,2]
[361128633,1747294244811,-151.0,0.00011214,2]
[361128634,1747294244820,-400.0,0.00011214,2]
[361128635,1747294244830,-400.0,0.00011214,2]
[361128636,1747294244840,-200.17163397,0.00011214,2]
[361128637,1747294244849,-400.0,0.00011214,2]
[361128638,1747294244859,-405.19145355,0.00011214,2]
[361128639,1747294244869,-448.69,0.00011214,2]
[361128640,1747294244880,-400.0,0.00011214,2]
[361128641,1747294244890,-428.94202428,0.00011214,2]
[361128642,1747294244900,-408.41594847,0.00011214,2]
[361128643,1747294244910,-400.0,0.00011214,2]
[361128644,1747294244922,-151.0,0.00011214,2]
[361128645,1747294244931,-158.982928,0.00011214,2]
[361128646,1747294244941,-151.0,0.00011214,2]
[361128647,1747294244950,-151.0,0.00011214,2]
[361128648,1747294244960,-7517.745865,0.00011214,2]
[361128649,1747294244969,-7517.745865,0.00011214,2]
[361128650,1747294244979,-7517.745865,0.00011214,2]
[361128651,1747294244988,-7517.745865,0.00011214,2]
[361128652,1747294244997,-7517.745865,0.00011214,2]
[361128653,1747294245007,-151.0,0.00011214,2]
[361128654,1747294245020,-151.0,0.00011214,2]
[361128655,1747294245030,-151.0,0.00011214,2]
[361128656,1747294245039,-411.62443347,0.00011214,2]
[361128657,1747294245049,-7517.745865,0.00011214,2]
[361128658,1747294245058,-7517.745865,0.00011214,2]
[361128659,1747294245068,-156.09224166,0.00011214,2]
[361128660,1747294245077,-7517.745865,0.00011214,2]
[361128661,1747294245088,-7517.745865,0.00011214,2]
[361128662,1747294245098,-7517.745865,0.00011214,2]
[361128663,1747294245108,-400.0,0.00011214,2]
[361128664,1747294245118,-158.33125408,0.00011214,2]
[361128665,1747294245127,-400.0,0.00011214,2]
[361128666,1747294245136,-400.0,0.00011214,2]
[361128667,1747294245145,-407.85581309,0.00011214,2]
[361128668,1747294245154,-400.0,0.00011214,2]
[361128669,1747294245164,-400.0,0.00011214,2]
[361128670,1747294245174,-400.0,0.00011214,2]
[361128671,1747294245183,-400.13040692,0.00011214,2]
[361128672,1747294245192,-304.35807645,0.00011214,2]
[361128673,1747294245201,-400.0,0.00011214,2]
[361128674,1747294245211,-410.66622901,0.00011214,2]
[361128675,1747294245220,-314.95835873,0.00011214,2]
[361128676,1747294245229,-400.0,0.00011214,2]
[361128677,1747294245238,-400.0,0.00011214,2]
[361128678,1747294245247,-470.61128166,0.00011214,2]
[361128679,1747294245257,-400.0,0.00011214,2]
[361128680,1747294245266,-433.24808266,0.00011214,2]
[361128681,1747294245275,-539.06447071,0.00011214,2]
[361128682,1747294245484,-400.0,0.00011214,2]
[361128683,1747294245494,-309.73778888,0.00011214,2]
[361128684,1747294245504,-431.30849275,0.00011214,2]
[361128685,1747294245514,-400.0,0.00011214,2]
[361128686,1747294245524,-400.0,0.00011214,2]
[361128687,1747294245535,-151.0,0.00011214,2]
[361128688,1747294245546,-151.0,0.00011214,2]
[361128689,1747294245555,-151.0,0.00011214,2]
[361128690,1747294245571,-151.0,0.00011214,2]
[361128691,1747294245581,-151.0,0.00011214,2]
[361128692,1747294245591,-256.380194,0.00011214,2]
[361128693,1747294245602,-151.0,0.00011214,2]
[361128694,1747294245612,-162.555727,0.00011214,2]
[361128695,1747294245623,-151.0,0.00011214,2]
[361128696,1747294245632,-151.0,0.00011214,2]
[361128697,1747294245641,-151.0,0.00011214,2]
[361128698,1747294245651,-151.0,0.00011214,2]
[361128699,1747294245661,-151.0,0.00011214,2]
[361128700,1747294245671,-151.0,0.00011214,2]
[361128701,1747294245681,-151.0,0.00011214,2]
[361128702,1747294245691,-151.0,0.00011214,2]
[361128703,1747294245700,-151.0,0.00011214,2]
[361128704,1747294245710,-151.0,0.00011214,2]
[361128705,1747294245720,-151.0,0.00011214,2]
[361128706,1747294245729,-400.0,0.00011214,2]
[361128707,1747294245738,-317.47702022,0.00011214,2]
[361128708,1747294245748,-241.303103,0.00011214,2]
[361128709,1747294245757,-400.0,0.00011214,2]
[361128710,1747294245767,-400.0,0.00011214,2]
[361128711,1747294245776,-151.0,0.00011214,2]
[361128712,1747294245786,-454.37962196,0.00011214,2]
[361128713,1747294245796,-151.0,0.00011214,2]
[361128714,1747294245805,-151.0,0.00011214,2]
[361128715,1747294245816,-151.0,0.00011214,2]
[361128716,1747294245826,-151.0,0.00011214,2]